[Event "Titled Tuesday Blitz November 14 Early 2023"]
[White "Mahdavi, Reza"]
[Black "Rietze, Clemens, Dr."]
[WhiteFideId "12595926"]
[BlackFideId "24620351"]
[WhiteElo "2884"]
[BlackElo "2521"]
[Result "1-0"]
[Round "3"]
[TimeControl "180+1"]
[Date "2023.11.14"]
[WhiteClock "0:00:48"]
[BlackClock "0:00:30"]
[Board "79"]

1. e4 {[%clk 0:03:00]}  c5 {[%clk 0:02:59]} 2. Nf3 {[%clk 0:03:01]}  Nc6 {[%clk 0:02:59]} 3. d4 {[%clk 0:03:01]}  cxd4 {[%clk 0:03:00]} 4. Nxd4 {[%clk 0:03:02]}  Nf6 {[%clk 0:03:01]} 5. Nc3 {[%clk 0:03:03]}  d6 {[%clk 0:03:01]} 6. Bg5 {[%clk 0:03:03]}  e6 {[%clk 0:03:01]} 7. Qd3 {[%clk 0:03:03]}  a6 {[%clk 0:02:58]} 8. Nxc6 {[%clk 0:03:03]}  bxc6 {[%clk 0:02:58]} 9. O-O-O {[%clk 0:03:04]}  Be7 {[%clk 0:02:46]} 10. Qg3 {[%clk 0:03:04]}  Qc7 {[%clk 0:02:45]} 11. Be2 {[%clk 0:02:22]}  e5 {[%clk 0:02:25]} 12. f4 {[%clk 0:02:20]}  h6 {[%clk 0:02:14]} 13. Bh4 {[%clk 0:02:18]}  g5 {[%clk 0:01:43]} 14. fxg5 {[%clk 0:02:18]}  Rg8 {[%clk 0:01:40]} 15. Kb1 {[%clk 0:01:35]}  hxg5 {[%clk 0:01:29]} 16. Bxg5 {[%clk 0:01:35]}  Nh7 {[%clk 0:01:28]} 17. h4 {[%clk 0:01:33]}  Nxg5 {[%clk 0:01:27]} 18. hxg5 {[%clk 0:01:33]}  Bxg5 {[%clk 0:01:25]} 19. Rh5 {[%clk 0:01:30]}  Qe7 {[%clk 0:01:25]} 20. Bc4 {[%clk 0:01:26]}  Be6 {[%clk 0:01:04]} 21. Bxe6 {[%clk 0:01:24]}  fxe6 {[%clk 0:01:05]} 22. Qd3 {[%clk 0:01:22]}  O-O-O {[%clk 0:00:56]} 23. Qxa6+ {[%clk 0:01:22]}  Qb7 {[%clk 0:00:57]} 24. Qc4 {[%clk 0:00:55]}  d5 {[%clk 0:00:53]} 25. exd5 {[%clk 0:00:54]}  exd5 {[%clk 0:00:50]} 26. Rxd5 {[%clk 0:00:54]}  Be3 {[%clk 0:00:35]} 27. Rxd8+ {[%clk 0:00:47]}  Rxd8 {[%clk 0:00:30]} 28. Qe6+ {[%clk 0:00:48]} 1-0


[Site "https://www.chess.com"]

[Event "Titled Tuesday Blitz November 14 Early 2023"]
[White "Purtseladze, Maka"]
[Black "BardArtem"]
[WhiteFideId "13602659"]
[WhiteElo "2520"]
[BlackElo "2840"]
[Result "1/2-1/2"]
[Round "3"]
[TimeControl "180+1"]
[Date "2023.11.14"]
[WhiteClock "0:00:14"]
[BlackClock "0:00:06"]
[Board "80"]

1. b3 {[%clk 0:03:00]}  d5 {[%clk 0:02:59]} 2. Bb2 {[%clk 0:03:01]}  Nf6 {[%clk 0:03:00]} 3. Nf3 {[%clk 0:03:00]}  Bf5 {[%clk 0:02:59]} 4. e3 {[%clk 0:02:56]}  e6 {[%clk 0:02:59]} 5. c4 {[%clk 0:02:56]}  c6 {[%clk 0:02:59]} 6. Nc3 {[%clk 0:02:57]}  Nbd7 {[%clk 0:02:59]} 7. Be2 {[%clk 0:02:58]}  h6 {[%clk 0:02:59]} 8. O-O {[%clk 0:02:55]}  Bd6 {[%clk 0:02:59]} 9. Nd4 {[%clk 0:02:44]}  Bh7 {[%clk 0:02:57]} 10. cxd5 {[%clk 0:02:45]}  exd5 {[%clk 0:02:56]} 11. f4 {[%clk 0:02:45]}  O-O {[%clk 0:02:56]} 12. Qe1 {[%clk 0:02:18]}  Nc5 {[%clk 0:02:51]} 13. Qh4 {[%clk 0:02:16]}  Nfe4 {[%clk 0:02:45]} 14. Qxd8 {[%clk 0:02:15]}  Raxd8 {[%clk 0:02:45]} 15. Nxe4 {[%clk 0:02:16]}  Nxe4 {[%clk 0:02:45]} 16. Rfd1 {[%clk 0:02:13]}  Rfe8 {[%clk 0:02:42]} 17. a3 {[%clk 0:02:05]}  g5 {[%clk 0:02:29]} 18. g3 {[%clk 0:01:57]}  gxf4 {[%clk 0:02:25]} 19. gxf4 {[%clk 0:01:58]}  Bf8 {[%clk 0:02:11]} 20. Nf3 {[%clk 0:01:39]}  Bg7 {[%clk 0:02:04]} 21. Bxg7 {[%clk 0:01:38]}  Kxg7 {[%clk 0:02:05]} 22. b4 {[%clk 0:01:37]}  Kf6 {[%clk 0:02:02]} 23. Nd4 {[%clk 0:01:32]}  Bf5 {[%clk 0:01:56]} 24. Nxf5 {[%clk 0:01:24]}  Kxf5 {[%clk 0:01:57]} 25. Rac1 {[%clk 0:01:13]}  d4 {[%clk 0:01:49]} 26. Bd3 {[%clk 0:01:09]}  Kf6 {[%clk 0:01:40]} 27. Bxe4 {[%clk 0:01:04]}  Rxe4 {[%clk 0:01:41]} 28. Kf2 {[%clk 0:01:05]}  Rd5 {[%clk 0:01:14]} 29. Kf3 {[%clk 0:01:02]}  Kf5 {[%clk 0:01:15]} 30. Rc4 {[%clk 0:00:47]}  Re6 {[%clk 0:00:58]} 31. Rxd4 {[%clk 0:00:16]}  Rxd4 {[%clk 0:00:57]} 32. exd4 {[%clk 0:00:17]}  Re4 {[%clk 0:00:57]} 33. d3 {[%clk 0:00:15]}  Rxd4 {[%clk 0:00:48]} 34. Ke3 {[%clk 0:00:15]}  Rxf4 {[%clk 0:00:48]} 35. Rg1 {[%clk 0:00:16]}  Rh4 {[%clk 0:00:47]} 36. Rg7 {[%clk 0:00:15]}  Kf6 {[%clk 0:00:45]} 37. Rg8 {[%clk 0:00:15]}  Rxh2 {[%clk 0:00:40]} 38. Rb8 {[%clk 0:00:16]}  Ra2 {[%clk 0:00:23]} 39. Rxb7 {[%clk 0:00:16]}  Rxa3 {[%clk 0:00:24]} 40. Rc7 {[%clk 0:00:16]}  h5 {[%clk 0:00:23]} 41. Rxc6+ {[%clk 0:00:16]}  Kg5 {[%clk 0:00:23]} 42. Rc5+ {[%clk 0:00:16]}  f5 {[%clk 0:00:21]} 43. Rc7 {[%clk 0:00:13]}  h4 {[%clk 0:00:18]} 44. Rg7+ {[%clk 0:00:13]}  Kh6 {[%clk 0:00:15]} 45. Rg8 {[%clk 0:00:13]}  Kh7 {[%clk 0:00:08]} 46. Rg5 {[%clk 0:00:12]}  Ra6 {[%clk 0:00:09]} 47. Rxf5 {[%clk 0:00:10]}  Rh6 {[%clk 0:00:09]} 48. Rf2 {[%clk 0:00:10]}  h3 {[%clk 0:00:08]} 49. Rh2 {[%clk 0:00:11]}  Kg6 {[%clk 0:00:08]} 50. Kf4 {[%clk 0:00:11]}  Kf6 {[%clk 0:00:08]} 51. Kg4 {[%clk 0:00:09]}  Ke5 {[%clk 0:00:08]} 52. Rxh3 {[%clk 0:00:09]}  Rxh3 {[%clk 0:00:09]} 53. Kxh3 {[%clk 0:00:10]}  Kd4 {[%clk 0:00:10]} 54. Kg4 {[%clk 0:00:10]}  Kc3 {[%clk 0:00:03]} 55. b5 {[%clk 0:00:07]}  Kxd3 {[%clk 0:00:03]} 56. Kf3 {[%clk 0:00:07]}  Kc4 {[%clk 0:00:03]} 57. Ke3 {[%clk 0:00:08]}  Kxb5 {[%clk 0:00:03]} 58. Kd2 {[%clk 0:00:09]}  Kb4 {[%clk 0:00:03]} 59. Kc2 {[%clk 0:00:09]}  Ka3 {[%clk 0:00:03]} 60. Kb1 {[%clk 0:00:10]}  Kb3 {[%clk 0:00:04]} 61. Ka1 {[%clk 0:00:11]}  Ka3 {[%clk 0:00:04]} 62. Kb1 {[%clk 0:00:12]}  Kb3 {[%clk 0:00:05]} 63. Ka1 {[%clk 0:00:13]}  Ka3 {[%clk 0:00:06]} 64. Kb1 {[%clk 0:00:14]} 1/2-1/2


[Site "https://www.chess.com"]

[Event "Titled Tuesday Blitz November 14 Early 2023"]
[White "Tifferet, Shaked"]
[Black "Timofeev, Artyom"]
[WhiteFideId "2811529"]
[BlackFideId "4140419"]
[WhiteElo "2517"]
[BlackElo "2833"]
[Result "1/2-1/2"]
[Round "3"]
[TimeControl "180+1"]
[Date "2023.11.14"]
[WhiteClock "0:00:08"]
[BlackClock "0:00:05"]
[Board "82"]

1. e4 {[%clk 0:03:00]}  d6 {[%clk 0:02:59]} 2. d4 {[%clk 0:03:00]}  Nf6 {[%clk 0:02:59]} 3. Nd2 {[%clk 0:03:00]}  g6 {[%clk 0:02:58]} 4. Ngf3 {[%clk 0:03:00]}  Bg7 {[%clk 0:02:58]} 5. Bd3 {[%clk 0:03:00]}  O-O {[%clk 0:02:57]} 6. O-O {[%clk 0:03:00]}  Nc6 {[%clk 0:02:57]} 7. c3 {[%clk 0:03:00]}  e5 {[%clk 0:02:56]} 8. Re1 {[%clk 0:03:00]}  h6 {[%clk 0:02:55]} 9. dxe5 {[%clk 0:02:57]}  dxe5 {[%clk 0:02:54]} 10. Bb5 {[%clk 0:02:50]}  Qe7 {[%clk 0:02:44]} 11. Nc4 {[%clk 0:02:46]}  Nh5 {[%clk 0:02:24]} 12. b3 {[%clk 0:02:38]}  Rd8 {[%clk 0:02:21]} 13. Qc2 {[%clk 0:02:34]}  Nf4 {[%clk 0:02:16]} 14. Bxf4 {[%clk 0:02:18]}  exf4 {[%clk 0:02:16]} 15. Bxc6 {[%clk 0:02:17]}  bxc6 {[%clk 0:02:15]} 16. e5 {[%clk 0:02:07]}  Bf5 {[%clk 0:02:14]} 17. Qc1 {[%clk 0:02:07]}  g5 {[%clk 0:02:14]} 18. Nd4 {[%clk 0:02:07]}  Bd7 {[%clk 0:02:11]} 19. Qc2 {[%clk 0:02:01]}  c5 {[%clk 0:02:06]} 20. Nf5 {[%clk 0:02:01]}  Bxf5 {[%clk 0:02:06]} 21. Qxf5 {[%clk 0:02:02]}  Rd5 {[%clk 0:02:00]} 22. Rad1 {[%clk 0:01:56]}  c6 {[%clk 0:01:54]} 23. h4 {[%clk 0:01:41]}  Rad8 {[%clk 0:01:50]} 24. Rb1 {[%clk 0:01:15]}  gxh4 {[%clk 0:01:28]} 25. Re4 {[%clk 0:00:50]}  Qg5 {[%clk 0:01:19]} 26. Rxf4 {[%clk 0:00:48]}  Qxf5 {[%clk 0:01:11]} 27. Rxf5 {[%clk 0:00:49]}  Rd3 {[%clk 0:01:12]} 28. Nd6 {[%clk 0:00:40]}  Rxc3 {[%clk 0:01:06]} 29. Re1 {[%clk 0:00:32]}  Rd7 {[%clk 0:01:01]} 30. Ne4 {[%clk 0:00:20]}  Rc2 {[%clk 0:01:01]} 31. Nf6+ {[%clk 0:00:20]}  Bxf6 {[%clk 0:01:01]} 32. exf6 {[%clk 0:00:21]}  Rxa2 {[%clk 0:00:52]} 33. Rxc5 {[%clk 0:00:20]}  Rd6 {[%clk 0:00:50]} 34. Rf5 {[%clk 0:00:18]}  Kh7 {[%clk 0:00:39]} 35. Re4 {[%clk 0:00:11]}  Kg6 {[%clk 0:00:26]} 36. Rf3 {[%clk 0:00:11]}  h5 {[%clk 0:00:17]} 37. Rxh4 {[%clk 0:00:09]}  a5 {[%clk 0:00:18]} 38. Rhf4 {[%clk 0:00:06]}  Rd5 {[%clk 0:00:16]} 39. Kh2 {[%clk 0:00:03]}  Rb2 {[%clk 0:00:15]} 40. Kh3 {[%clk 0:00:03]}  Rg5 {[%clk 0:00:14]} 41. g3 {[%clk 0:00:03]}  Rb5 {[%clk 0:00:13]} 42. Rc4 {[%clk 0:00:03]}  R2xb3 {[%clk 0:00:13]} 43. Rxb3 {[%clk 0:00:03]}  Rxb3 {[%clk 0:00:13]} 44. Rxc6 {[%clk 0:00:04]}  a4 {[%clk 0:00:14]} 45. Ra6 {[%clk 0:00:04]}  Ra3 {[%clk 0:00:14]} 46. f4 {[%clk 0:00:04]}  Ra1 {[%clk 0:00:14]} 47. Ra5 {[%clk 0:00:03]}  a3 {[%clk 0:00:14]} 48. Kg2 {[%clk 0:00:04]}  a2 {[%clk 0:00:11]} 49. Kh2 {[%clk 0:00:04]}  Kxf6 {[%clk 0:00:11]} 50. Ra6+ {[%clk 0:00:03]}  Kf5 {[%clk 0:00:11]} 51. Ra5+ {[%clk 0:00:03]}  Ke4 {[%clk 0:00:10]} 52. Ra4+ {[%clk 0:00:03]}  Kf3 {[%clk 0:00:10]} 53. Ra3+ {[%clk 0:00:04]}  Kg4 {[%clk 0:00:10]} 54. Ra5 {[%clk 0:00:03]}  f6 {[%clk 0:00:07]} 55. Kg2 {[%clk 0:00:03]}  h4 {[%clk 0:00:03]} 56. gxh4 {[%clk 0:00:03]}  Kxf4 {[%clk 0:00:04]} 57. h5 {[%clk 0:00:03]}  Kg4 {[%clk 0:00:03]} 58. h6 {[%clk 0:00:03]}  Rb1 {[%clk 0:00:04]} 59. Rxa2 {[%clk 0:00:03]}  Rb8 {[%clk 0:00:04]} 60. Ra4+ {[%clk 0:00:02]}  Kg5 {[%clk 0:00:04]} 61. Ra3 {[%clk 0:00:03]}  Kxh6 {[%clk 0:00:04]} 62. Rh3+ {[%clk 0:00:04]}  Kg6 {[%clk 0:00:04]} 63. Rg3+ {[%clk 0:00:05]}  Kf7 {[%clk 0:00:04]} 64. Rf3 {[%clk 0:00:05]}  Ke6 {[%clk 0:00:04]} 65. Ra3 {[%clk 0:00:06]}  Kf5 {[%clk 0:00:05]} 66. Kf3 {[%clk 0:00:05]}  Kg5 {[%clk 0:00:05]} 67. Ra5+ {[%clk 0:00:06]}  f5 {[%clk 0:00:05]} 68. Ra3 {[%clk 0:00:04]}  Rb4 {[%clk 0:00:05]} 69. Kg3 {[%clk 0:00:04]}  Rb1 {[%clk 0:00:05]} 70. Kf3 {[%clk 0:00:04]}  Rf1+ {[%clk 0:00:05]} 71. Kg2 {[%clk 0:00:05]}  Rd1 {[%clk 0:00:05]} 72. Ra4 {[%clk 0:00:04]}  f4 {[%clk 0:00:05]} 73. Ra8 {[%clk 0:00:05]}  Rd3 {[%clk 0:00:03]} 74. Rg8+ {[%clk 0:00:05]}  Kf5 {[%clk 0:00:04]} 75. Rf8+ {[%clk 0:00:05]}  Ke4 {[%clk 0:00:04]} 76. Re8+ {[%clk 0:00:06]}  Kd4 {[%clk 0:00:04]} 77. Rd8+ {[%clk 0:00:06]}  Ke3 {[%clk 0:00:05]} 78. Rxd3+ {[%clk 0:00:06]}  Kxd3 {[%clk 0:00:05]} 79. Kf3 {[%clk 0:00:07]}  Kd2 {[%clk 0:00:05]} 80. Kxf4 {[%clk 0:00:08]} 1/2-1/2


[Site "https://www.chess.com"]

[Event "Titled Tuesday Blitz November 14 Early 2023"]
[White "Cristi_Coca"]
[Black "Szpar, Milosz"]
[BlackFideId "1184989"]
[WhiteElo "2515"]
[BlackElo "2818"]
[Result "0-1"]
[Round "3"]
[TimeControl "180+1"]
[Date "2023.11.14"]
[WhiteClock "0:01:43"]
[BlackClock "0:01:33"]
[Board "84"]

1. e4 {[%clk 0:03:00]}  c5 {[%clk 0:02:59]} 2. c3 {[%clk 0:02:56]}  e6 {[%clk 0:02:48]} 3. d4 {[%clk 0:02:56]}  d5 {[%clk 0:02:48]} 4. exd5 {[%clk 0:02:57]}  exd5 {[%clk 0:02:48]} 5. Nf3 {[%clk 0:02:57]}  Nc6 {[%clk 0:02:49]} 6. Bd3 {[%clk 0:02:57]}  Nf6 {[%clk 0:02:48]} 7. O-O {[%clk 0:02:57]}  Be7 {[%clk 0:02:45]} 8. Re1 {[%clk 0:02:56]}  O-O {[%clk 0:02:45]} 9. Nbd2 {[%clk 0:02:56]}  h6 {[%clk 0:02:40]} 10. dxc5 {[%clk 0:02:55]}  Bxc5 {[%clk 0:02:40]} 11. Nb3 {[%clk 0:02:55]}  Bd6 {[%clk 0:02:34]} 12. h3 {[%clk 0:02:54]}  Bd7 {[%clk 0:02:31]} 13. Nfd4 {[%clk 0:02:51]}  Ne5 {[%clk 0:02:28]} 14. Bc2 {[%clk 0:02:45]}  Re8 {[%clk 0:02:27]} 15. Bf4 {[%clk 0:02:41]}  Qc7 {[%clk 0:02:23]} 16. Bxe5 {[%clk 0:02:40]}  Bxe5 {[%clk 0:02:13]} 17. Qf3 {[%clk 0:02:38]}  g6 {[%clk 0:01:38]} 18. Rad1 {[%clk 0:02:37]}  Kg7 {[%clk 0:01:38]} 19. Nc1 {[%clk 0:02:08]}  Bxd4 {[%clk 0:01:33]} 20. Rxe8 {[%clk 0:01:43]}  Rxe8 {[%clk 0:01:33]} 0-1


[Site "https://www.chess.com"]

[Event "Titled Tuesday Blitz November 14 Early 2023"]
[White "Novik, Maxim"]
[Black "Lobanov, Sergei"]
[WhiteFideId "4102924"]
[BlackFideId "24183750"]
[WhiteElo "2511"]
[BlackElo "2806"]
[Result "0-1"]
[Round "3"]
[TimeControl "180+1"]
[Date "2023.11.14"]
[WhiteClock "0:00:00"]
[BlackClock "0:00:04"]
[Board "86"]

1. e4 {[%clk 0:03:00]}  e5 {[%clk 0:02:59]} 2. Nf3 {[%clk 0:03:00]}  Nc6 {[%clk 0:03:00]} 3. Bc4 {[%clk 0:03:01]}  Nf6 {[%clk 0:03:00]} 4. d3 {[%clk 0:03:01]}  Bc5 {[%clk 0:03:00]} 5. O-O {[%clk 0:03:01]}  d6 {[%clk 0:02:58]} 6. Nc3 {[%clk 0:03:01]}  a6 {[%clk 0:02:54]} 7. a4 {[%clk 0:02:57]}  h6 {[%clk 0:02:54]} 8. Be3 {[%clk 0:02:50]}  O-O {[%clk 0:02:48]} 9. Bxc5 {[%clk 0:02:49]}  dxc5 {[%clk 0:02:48]} 10. a5 {[%clk 0:02:49]}  Bg4 {[%clk 0:02:41]} 11. h3 {[%clk 0:02:48]}  Bh5 {[%clk 0:02:41]} 12. Ne2 {[%clk 0:02:12]}  Bxf3 {[%clk 0:02:34]} 13. gxf3 {[%clk 0:02:12]}  Nh5 {[%clk 0:02:16]} 14. Qd2 {[%clk 0:02:12]}  Nd4 {[%clk 0:02:13]} 15. Nxd4 {[%clk 0:01:57]}  cxd4 {[%clk 0:02:13]} 16. Kh2 {[%clk 0:01:35]}  Kh8 {[%clk 0:01:32]} 17. Rg1 {[%clk 0:01:33]}  f5 {[%clk 0:01:32]} 18. Rg6 {[%clk 0:01:17]}  Nf4 {[%clk 0:01:04]} 19. Rg3 {[%clk 0:01:11]}  fxe4 {[%clk 0:00:48]} 20. fxe4 {[%clk 0:01:10]}  Qh4 {[%clk 0:00:45]} 21. Rf1 {[%clk 0:00:50]}  Rf6 {[%clk 0:00:42]} 22. Qd1 {[%clk 0:00:49]}  h5 {[%clk 0:00:26]} 23. Rfg1 {[%clk 0:00:37]}  Raf8 {[%clk 0:00:25]} 24. Qf1 {[%clk 0:00:31]}  g6 {[%clk 0:00:21]} 25. f3 {[%clk 0:00:23]}  Kh7 {[%clk 0:00:20]} 26. c3 {[%clk 0:00:21]}  Rd6 {[%clk 0:00:17]} 27. Rg5 {[%clk 0:00:17]}  dxc3 {[%clk 0:00:11]} 28. bxc3 {[%clk 0:00:17]}  Rfd8 {[%clk 0:00:09]} 29. Rxe5 {[%clk 0:00:17]}  Nxd3 {[%clk 0:00:08]} 30. Rd5 {[%clk 0:00:16]}  Nf4 {[%clk 0:00:06]} 31. Rxd6 {[%clk 0:00:16]}  Rxd6 {[%clk 0:00:07]} 32. Bd5 {[%clk 0:00:14]}  c6 {[%clk 0:00:06]} 33. c4 {[%clk 0:00:14]}  cxd5 {[%clk 0:00:06]} 34. cxd5 {[%clk 0:00:15]}  Rd7 {[%clk 0:00:06]} 35. Rg3 {[%clk 0:00:13]}  Rc7 {[%clk 0:00:06]} 36. Qd1 {[%clk 0:00:12]}  Rc3 {[%clk 0:00:05]} 37. d6 {[%clk 0:00:12]}  Rd3 {[%clk 0:00:06]} 38. Qc1 {[%clk 0:00:10]}  Qf6 {[%clk 0:00:03]} 39. Qc7+ {[%clk 0:00:09]}  Kh6 {[%clk 0:00:04]} 40. e5 {[%clk 0:00:09]}  Qxe5 {[%clk 0:00:03]} 41. Qc1 {[%clk 0:00:06]}  Qe2+ {[%clk 0:00:03]} 42. Kh1 {[%clk 0:00:06]}  Rd1+ {[%clk 0:00:03]} 43. Qxd1 {[%clk 0:00:06]}  Qxd1+ {[%clk 0:00:04]} 44. Kh2 {[%clk 0:00:00]}  Qxd6 {[%clk 0:00:04]} 0-1


[Site "https://www.chess.com"]

[Event "Titled Tuesday Blitz November 14 Early 2023"]
[White "Chernomordik, Pavel"]
[Black "Costachi, Mihnea"]
[WhiteFideId "2804530"]
[BlackFideId "1217518"]
[WhiteElo "2507"]
[BlackElo "2765"]
[Result "1/2-1/2"]
[Round "3"]
[TimeControl "180+1"]
[Date "2023.11.14"]
[WhiteClock "0:00:09"]
[BlackClock "0:00:45"]
[Board "88"]

1. e4 {[%clk 0:02:12]}  e6 {[%clk 0:02:53]} 2. Nc3 {[%clk 0:02:11]}  d5 {[%clk 0:02:53]} 3. d4 {[%clk 0:02:11]}  Bb4 {[%clk 0:02:53]} 4. Ne2 {[%clk 0:02:10]}  c5 {[%clk 0:02:50]} 5. a3 {[%clk 0:02:10]}  Bxc3+ {[%clk 0:02:50]} 6. Nxc3 {[%clk 0:02:10]}  dxe4 {[%clk 0:02:47]} 7. dxc5 {[%clk 0:01:56]}  Qxd1+ {[%clk 0:02:47]} 8. Kxd1 {[%clk 0:01:55]}  Nf6 {[%clk 0:02:43]} 9. Nb5 {[%clk 0:01:51]}  Na6 {[%clk 0:02:43]} 10. Nd6+ {[%clk 0:01:51]}  Ke7 {[%clk 0:02:43]} 11. b4 {[%clk 0:01:51]}  Rd8 {[%clk 0:02:36]} 12. Bxa6 {[%clk 0:01:42]}  bxa6 {[%clk 0:02:35]} 13. Ke2 {[%clk 0:01:41]}  Bd7 {[%clk 0:02:30]} 14. c4 {[%clk 0:01:33]}  Ba4 {[%clk 0:02:29]} 15. Bb2 {[%clk 0:01:29]}  Bc2 {[%clk 0:02:29]} 16. Rac1 {[%clk 0:01:23]}  Bd3+ {[%clk 0:02:29]} 17. Kd2 {[%clk 0:01:23]}  Ne8 {[%clk 0:02:22]} 18. Be5 {[%clk 0:01:15]}  f6 {[%clk 0:02:21]} 19. Bg3 {[%clk 0:01:06]}  e5 {[%clk 0:02:20]} 20. Ke3 {[%clk 0:00:57]}  Nxd6 {[%clk 0:02:17]} 21. cxd6+ {[%clk 0:00:57]}  Rxd6 {[%clk 0:02:14]} 22. Rhd1 {[%clk 0:00:57]}  Rad8 {[%clk 0:02:08]} 23. c5 {[%clk 0:00:55]}  Rd4 {[%clk 0:02:00]} 24. f3 {[%clk 0:00:52]}  Ke6 {[%clk 0:01:58]} 25. Be1 {[%clk 0:00:50]}  f5 {[%clk 0:01:58]} 26. g3 {[%clk 0:00:49]}  exf3 {[%clk 0:01:55]} 27. c6 {[%clk 0:00:36]}  Be4 {[%clk 0:01:45]} 28. Rxd4 {[%clk 0:00:34]}  exd4+ {[%clk 0:01:45]} 29. Kd2 {[%clk 0:00:31]}  Rc8 {[%clk 0:01:46]} 30. c7 {[%clk 0:00:30]}  Kd7 {[%clk 0:01:41]} 31. Bf2 {[%clk 0:00:30]}  Rxc7 {[%clk 0:01:41]} 32. Rxc7+ {[%clk 0:00:29]}  Kxc7 {[%clk 0:01:42]} 33. Bxd4 {[%clk 0:00:30]}  g6 {[%clk 0:01:40]} 34. Bxa7 {[%clk 0:00:29]}  Kc6 {[%clk 0:01:41]} 35. Bf2 {[%clk 0:00:28]}  Kd5 {[%clk 0:01:39]} 36. Kc3 {[%clk 0:00:28]}  Bb1 {[%clk 0:01:38]} 37. a4 {[%clk 0:00:27]}  Be4 {[%clk 0:01:13]} 38. b5 {[%clk 0:00:26]}  axb5 {[%clk 0:01:14]} 39. axb5 {[%clk 0:00:26]}  Ke5 {[%clk 0:01:12]} 40. b6 {[%clk 0:00:25]}  Bb7 {[%clk 0:01:07]} 41. Kd3 {[%clk 0:00:25]}  g5 {[%clk 0:01:06]} 42. Bd4+ {[%clk 0:00:16]}  Ke6 {[%clk 0:01:06]} 43. Be3 {[%clk 0:00:15]}  Kf6 {[%clk 0:01:05]} 44. Kd2 {[%clk 0:00:15]}  Kg6 {[%clk 0:01:04]} 45. Ke1 {[%clk 0:00:15]}  Kh5 {[%clk 0:01:05]} 46. Kf2 {[%clk 0:00:15]}  Kg4 {[%clk 0:01:06]} 47. h3+ {[%clk 0:00:14]}  Kh5 {[%clk 0:01:02]} 48. Bd2 {[%clk 0:00:13]}  h6 {[%clk 0:01:02]} 49. Be3 {[%clk 0:00:13]}  Kg6 {[%clk 0:01:02]} 50. Bd2 {[%clk 0:00:13]}  Kf6 {[%clk 0:00:59]} 51. Bc3+ {[%clk 0:00:13]}  Kf7 {[%clk 0:00:58]} 52. Bd4 {[%clk 0:00:13]}  Kg6 {[%clk 0:00:57]} 53. Be5 {[%clk 0:00:12]}  Kf7 {[%clk 0:00:51]} 54. Bd4 {[%clk 0:00:12]}  Ke6 {[%clk 0:00:50]} 55. Bg7 {[%clk 0:00:12]}  h5 {[%clk 0:00:50]} 56. Bh6 {[%clk 0:00:11]}  Kf6 {[%clk 0:00:50]} 57. Bf8 {[%clk 0:00:11]}  Ke5 {[%clk 0:00:33]} 58. Be7 {[%clk 0:00:11]}  g4 {[%clk 0:00:34]} 59. h4 {[%clk 0:00:10]}  f4 {[%clk 0:00:34]} 60. Bd8 {[%clk 0:00:09]}  fxg3+ {[%clk 0:00:33]} 61. Kxg3 {[%clk 0:00:09]}  Ke4 {[%clk 0:00:34]} 62. Be7 {[%clk 0:00:09]}  Ke3 {[%clk 0:00:33]} 63. Bc5+ {[%clk 0:00:10]}  Ke2 {[%clk 0:00:34]} 64. Bf2 {[%clk 0:00:10]}  Kf1 {[%clk 0:00:34]} 65. Bc5 {[%clk 0:00:10]}  Bc6 {[%clk 0:00:35]} 66. Bd4 {[%clk 0:00:10]}  Ke2 {[%clk 0:00:36]} 67. Bc5 {[%clk 0:00:10]}  Kd3 {[%clk 0:00:36]} 68. Bf2 {[%clk 0:00:10]}  Bb7 {[%clk 0:00:37]} 69. Bg1 {[%clk 0:00:10]}  Kc4 {[%clk 0:00:37]} 70. Be3 {[%clk 0:00:10]}  Kb5 {[%clk 0:00:38]} 71. Bf2 {[%clk 0:00:10]}  Kc6 {[%clk 0:00:38]} 72. Be3 {[%clk 0:00:10]}  Kd5 {[%clk 0:00:39]} 73. Bf2 {[%clk 0:00:10]}  Ke4 {[%clk 0:00:39]} 74. Bc5 {[%clk 0:00:10]}  Kd3 {[%clk 0:00:40]} 75. Bf2 {[%clk 0:00:10]}  Ke2 {[%clk 0:00:40]} 76. Bc5 {[%clk 0:00:10]}  Bc6 {[%clk 0:00:40]} 77. Bd4 {[%clk 0:00:10]}  Bd5 {[%clk 0:00:40]} 78. Bc5 {[%clk 0:00:10]}  Kd3 {[%clk 0:00:40]} 79. Bf2 {[%clk 0:00:10]}  Ke4 {[%clk 0:00:40]} 80. Bc5 {[%clk 0:00:10]}  Bb7 {[%clk 0:00:40]} 81. Bf2 {[%clk 0:00:09]}  Kd5 {[%clk 0:00:41]} 82. Be3 {[%clk 0:00:09]}  Kc4 {[%clk 0:00:41]} 83. Bf2 {[%clk 0:00:09]}  Kd3 {[%clk 0:00:42]} 84. Bc5 {[%clk 0:00:09]}  Kc3 {[%clk 0:00:43]} 85. Bf2 {[%clk 0:00:09]}  Kb4 {[%clk 0:00:43]} 86. Be3 {[%clk 0:00:09]}  Kc4 {[%clk 0:00:44]} 87. Bf2 {[%clk 0:00:09]}  Kd3 {[%clk 0:00:45]} 1/2-1/2


[Site "https://www.chess.com"]